bitfinex/quotes_SOLUSD_20241001
["timestamp","ask_amount","ask_price","bid_price","bid_amount"]
[1727803172260,0.5,145.37,145.31,6.8817]
[1727803172567,0.5,145.37,145.22,6.0623]
[1727803172568,0.5,145.41,145.26,53.49937045]
[1727803172863,24.276884,145.41,145.33,17.2021]
[1727803173044,0.5,145.4,145.26,53.49937045]
[1727803173235,0.5,145.4,145.22,7.5623]
[1727803173236,0.5,145.4,145.36,6.879]
[1727803173437,7.3772,145.41,145.35,17.1996]
[1727803173636,0.5,145.39,145.35,17.1996]
[1727803173838,0.5,145.37,145.32,6.8813]
[1727803174065,0.5,145.36,145.32,6.8811]
[1727803174255,0.5,145.4,145.34,6.8804]
[1727803174578,17.1893,145.44,145.34,17.2009]
[1727803174579,0.5,145.42,145.34,17.2009]
[1727803174756,0.5,145.39,145.34,17.2009]
[1727803175072,0.5,145.39,145.26,34.4209]
[1727803175073,0.5,145.37,145.3,17.2049]
[1727803175371,0.5,145.37,145.33,17.2022]
[1727803175572,0.5,145.35,145.29,17.2064]
[1727803175748,0.5,145.43,145.38,6.8783]
[1727803175956,0.5,145.41,145.37,6.8787]
[1727803176148,6.8763,145.43,145.31,24.0851]
[1727803176149,6.8791,145.37,145.31,24.0851]
[1727803176471,0.5,145.39,145.31,17.2035]
[1727803176650,0.5,145.38,145.32,6.8811]
[1727803176845,0.5,145.4,145.31,17.2035]
[1727803177047,0.5,145.36,145.32,6.8809]
[1727803177447,0.5,145.34,145.31,17.2035]
[1727803177646,0.5,145.34,145.28,24.0907]
[1727803177952,0.5,145.38,145.29,34.4139]
[1727803178277,15.3945,145.41,145.38,6.8784]
[1727803178463,0.65269753,145.5,145.29,87.91327045]
[1727803178464,0.5,145.46,145.41,17.1924]
[1727803178774,15.9559,145.49,145.44,6.8756]
[1727803178775,0.5,145.48,145.44,6.8756]
[1727803178947,6.8743,145.47,145.42,17.1907]
[1727803179270,15.9559,145.49,145.42,24.0668]
[1727803179271,0.5,145.46,145.42,24.0668]
[1727803179487,16.4559,145.49,145.37,34.3928]
[1727803179779,0.5,145.51,145.46,6.8747]
[1727803179946,33.131,145.56,145.44,17.1881]
[1727803179947,0.5,145.49,145.44,17.1881]
[1727803180150,0.5,145.43,145.33,34.403]
[1727803180472,7.3737,145.49,145.36,53.49937045]
[1727803180652,0.5,145.49,145.39,53.49937045]
[1727803180858,0.5,145.52,145.48,17.1843]
[1727803181281,0.5,145.54,145.48,17.1843]
[1727803181579,0.5,145.54,145.51,6.8723]
[1727803181745,0.5,145.59,145.54,6.8709]
[1727803181949,1.2337748,145.61,145.59,6.8685]
[1727803182172,1.2337748,145.61,145.6,6.8681]
[1727803183253,1.2337748,145.61,145.57,23.275]
[1727803183447,0.5,145.6,145.49,34.3645]
[1727803183646,1.2337748,145.61,145.49,34.3645]
[1727803183647,0.5,145.57,145.49,34.3645]
[1727803183856,6.8691,145.58,145.49,34.3645]
[1727803183857,0.5,145.58,145.49,34.3645]
[1727803184044,0.5,145.6,145.49,34.3645]
[1727803184253,0.5,145.58,145.49,34.3645]
[1727803184472,0.5,145.55,145.48,24.0573]
[1727803184647,0.5,145.53,145.48,24.0577]
[1727803184984,7.3725,145.51,145.44,24.0641]
[1727803185150,0.5,145.51,145.45,6.8751]
[1727803185349,0.5,145.51,145.46,6.8747]
[1727803185574,0.5,145.52,145.44,17.1888]
[1727803185873,6.8733,145.49,145.44,17.1888]
[1727803186051,0.5,145.5,145.45,6.875]
[1727803186257,0.5,145.52,145.44,17.1888]
[1727803186553,0.5,145.49,145.45,6.8751]
[1727803186759,0.5,145.49,145.44,24.0644]
[1727803186959,7.3722,145.52,145.45,6.8751]
[1727803187167,7.3712,145.54,145.44,17.1888]
[1727803187361,0.5,145.54,145.44,17.1888]
[1727803187574,0.5,145.54,145.47,17.1852]
[1727803187863,0.5,145.54,145.49,6.8728]
[1727803188064,0.5,145.59,145.5,6.8727]
[1727803188378,0.5,145.54,145.48,24.0577]
[1727803188587,6.8709,145.55,145.48,24.0577]
[1727803188775,7.3715,145.53,145.48,17.1841]
[1727803189078,52.7413748,145.61,145.36,34.3953]
[1727803189079,6.8738,145.48,145.36,34.3953]
[1727803189458,7.3742,145.47,145.41,6.877]
[1727803189758,7.3742,145.47,145.33,1.5]
[1727803189759,0.5,145.47,145.39,17.195]
[1727803189956,0.5,145.47,145.43,6.8761]
[1727803190175,6.8738,145.48,145.41,24.0688]
[1727803190370,0.5,145.49,145.44,6.8756]
[1727803190681,0.5,145.51,145.45,6.8751]
[1727803191183,0.5,145.49,145.44,17.1889]
[1727803191371,0.5,145.51,145.44,17.1889]
[1727803191677,6.8719,145.53,145.39,34.3881]
[1727803191678,0.5,145.53,145.5,17.1813]
[1727803191889,0.5,145.53,145.48,6.8737]
[1727803192058,0.5,145.53,145.49,6.8731]
[1727803192259,0.5,145.55,145.51,6.8723]
[1727803192471,0.5,145.57,145.51,17.1809]
[1727803192787,0.5,145.57,145.53,6.8713]
[1727803193083,0.5,145.57,145.44,6.315]
[1727803193383,15.0245,145.58,145.36,17.1976]
[1727803193384,0.5,145.44,145.36,17.1976]
[1727803193552,0.5,145.42,145.36,17.1976]
[1727803193758,0.5,145.4,145.36,6.8794]
[1727803194179,7.3777,145.4,145.34,6.8803]
[1727803194400,7.377,145.42,145.35,24.0792]
[1727803194692,7.377,145.42,145.37,6.8788]
[1727803194693,0.5,145.42,145.37,6.8788]
[1727803195287,0.5,145.41,145.35,17.1993]
[1727803195475,0.5,145.41,145.37,6.8789]
[1727803195787,0.5,145.43,145.39,6.8776]
[1727803196293,0.5,145.42,145.37,6.8789]
[1727803196597,0.5,145.44,145.39,6.878]
[1727803196771,37.1842,145.49,145.36,17.1976]
[1727803196772,0.5,145.42,145.36,17.1976]
[1727803196969,6.80767195,145.42,145.37,6.8789]
[1727803197171,6.80767195,145.42,145.36,17.1976]
[1727803197374,0.5,145.42,145.33,53.49937045]
[1727803197595,6.30767195,145.48,145.3,53.49937045]
[1727803197596,0.5,145.37,145.3,53.49937045]
[1727803197774,0.5,145.39,145.35,6.8799]
[1727803197989,0.5,145.39,145.34,6.8801]
[1727803198170,0.5,145.39,145.33,17.2012]
[1727803198374,0.5,145.41,145.36,17.1985]
[1727803198591,0.5,145.41,145.36,24.0775]
[1727803198592,6.33806814,145.4,145.36,24.0775]
[1727803198797,6.83806814,145.39,145.33,6.8804]
[1727803198974,0.5,145.36,145.32,17.2024]
[1727803199174,0.5,145.36,145.29,17.2068]
[1727803199175,6.33777284,145.35,145.29,17.2068]
[1727803199383,6.34684174,145.34,145.32,6.8813]
[1727803199585,6.34684174,145.34,145.25,34.423]
[1727803199586,6.84684174,145.34,145.25,34.423]
[1727803199780,0.5,145.3,145.25,24.0947]
[1727803199982,0.5,145.3,145.22,17.215]
[1727803200183,0.5,145.3,145.21,12.60753777]
[1727803200184,0.5,145.24,145.21,12.60753777]
[1727803200386,0.5,145.24,145.21,6.30368912]
[1727803200584,0.5,145.22,145.14,6.8894]
[1727803200807,0.5,145.22,145.14,6.8898]
[1727803201013,0.5,145.19,145.14,6.8898]
[1727803201194,0.5,145.19,145.09,6.5313]
[1727803201195,0.5,145.19,145.13,17.2257]
[1727803201705,7.387,145.2,145.13,24.116]
[1727803201911,0.5,145.17,145.1,6.8914]
[1727803202209,0.5,145.17,145.09,17.23]
[1727803202210,0.5,145.11,145.05,17.2346]
[1727803202417,0.5,145.11,145.05,38.73349]
[1727803202890,0.5,145.11,145.07,6.8931]
[1727803203090,0.5,145.11,145.09,6.8922]
[1727803203292,20.0,145.2,145.05,21.49889]
[1727803203293,0.5,145.15,145.12,6.8904]
[1727803203626,0.5,145.12,145.07,6.8927]
[1727803203915,21.15635681,145.24,145.05,21.49889]
[1727803203916,0.5,145.1,145.05,21.49889]
[1727803204107,0.5,145.07,145.05,21.49889]
[1727803205105,7.3932,145.07,145.05,4.83229]
[1727803205428,7.3932,145.07,145.0,0.5938324]
[1727803205429,0.5,145.01,145.0,0.5938324]
[1727803205720,0.5,145.03,145.01,6.8958]
[1727803205886,0.5,145.03,145.01,17.2401]
[1727803206085,6.6173,145.11,145.01,17.2401]
[1727803206086,0.5,145.05,145.01,17.2401]
[1727803206303,0.5,145.03,145.01,24.1357]
[1727803206511,6.6173,145.11,145.0,0.5938324]
[1727803206512,0.5,145.02,145.0,0.5938324]
[1727803207218,17.2265,145.13,145.0,0.5938324]
[1727803207219,0.5,145.06,145.0,17.8347324]
[1727803207518,0.5,145.02,145.0,0.5938324]
[1727803207701,0.5,145.06,145.0,0.5938324]
[1727803208310,0.5,145.08,145.0,0.5938324]
[1727803208500,0.5,145.1,145.0,54.09320285]
[1727803208692,6.8953,145.03,145.0,0.5938324]
[1727803209008,50.7394,145.17,145.0,0.5938324]
[1727803209009,7.396,145.01,145.0,0.5938324]
[1727803209201,7.396,145.01,144.85,60.43717785]
[1727803209202,6.8998,144.93,144.86,17.2569]
[1727803209417,0.5,144.94,144.85,0.8205074]
[1727803209608,0.5,144.89,144.85,0.8205074]
[1727803210000,0.5,144.89,144.86,6.9031]
[1727803210221,0.5,144.91,144.86,17.2579]
[1727803210420,0.5,144.89,144.85,0.8205074]
[1727803210630,0.5,144.87,144.85,0.8205074]
[1727803210999,0.5,144.89,144.85,0.8205074]
[1727803211200,0.5,144.87,144.85,0.8205074]
[1727803211394,34.4819,145.01,144.85,0.8205074]
[1727803211395,0.5,144.86,144.85,0.8205074]
[1727803212027,0.5,144.81,144.8,0.2194643]
[1727803212700,29.47988432,144.87,144.64,41.0471]
[1727803212701,0.5,144.76,144.7,6.9106]
[1727803212899,0.5,144.65,144.62,0.3279621]
[1727803213099,20.5,144.57,144.42,0.8205074]
[1727803213308,0.5,144.52,144.43,6.9233]
[1727803213520,0.5,144.52,144.42,0.8205074]
[1727803213916,0.5,144.52,144.33,0.3279621]
[1727803213917,6.9225,144.46,144.35,17.3189]
[1727803214132,0.5,144.48,144.37,6.9262]
[1727803214294,0.5,144.48,144.35,0.2414046]
[1727803214500,6.6099,144.54,144.35,0.2414046]
[1727803214501,0.5,144.41,144.35,0.2414046]
[1727803214736,17.2987,144.52,144.35,0.2414046]
[1727803214737,0.5,144.37,144.36,5.32637385]
[1727803214912,0.5,144.39,144.35,0.2414046]
[1727803215225,56.6099,144.54,144.35,0.2414046]
[1727803215226,0.5,144.41,144.35,0.2414046]
[1727803215438,0.5,144.35,144.33,6.9974667]
[1727803215817,0.5,144.37,144.33,0.0693667]
[1727803216018,0.5,144.37,144.28,7.19226097]
[1727803216019,23.776884,144.3,144.28,7.19226097]
[1727803216327,0.5,144.36,144.3,7.19226097]
[1727803216526,0.5,144.33,144.28,7.19226097]
[1727803216705,0.5,144.35,144.34,6.928]
[1727803217121,0.5,144.38,144.37,6.9263]
[1727803217428,0.5,144.4,144.38,6.9257]
[1727803217814,69.2,144.39,144.26,1.287468]
[1727803218015,9.4314,144.27,144.26,1.287468]
[1727803218229,0.5,144.27,144.26,1.287468]
[1727803219129,0.5,144.3,144.26,1.287468]
[1727803219336,0.5,144.27,144.26,1.287468]
[1727803219756,0.5,144.31,144.3,6.9297]
[1727803220115,0.5,144.34,144.33,6.9285]
[1727803220329,7.02063323,144.41,144.29,53.49937045]
[1727803220330,0.5,144.33,144.31,6.9292]
[1727803220742,0.5,144.35,144.31,17.3236]
[1727803221037,0.5,144.33,144.31,24.2526]
[1727803221240,0.5,144.28,144.27,6.9312]
[1727803221535,0.5,144.28,144.26,1.287468]
[1727803221747,7.4312,144.28,144.26,1.287468]
[1727803221911,20.0,144.27,144.26,1.287468]
[1727803222115,7.4312,144.28,144.26,1.287468]
[1727803222316,0.5,144.28,144.26,1.287468]
[1727803222615,7.4311,144.28,144.26,1.287468]
[1727803222836,22.0,144.27,144.26,1.287468]
[1727803223135,9.4338,144.22,144.21,0.2194643]
[1727803223515,9.4338,144.22,144.16,9.66253444]
[1727803223516,59.4362,144.17,144.16,3.05263444]
[1727803223716,23.776884,144.16,144.03,9.12336606]
[1727803224049,0.5,144.04,144.03,9.12336606]
[1727803224913,0.5,144.01,144.0,19.3]
[1727803225316,2.5,144.01,144.0,19.3]
[1727803225518,9.4439,144.01,144.0,2.6334]
[1727803225736,7.4478,143.93,143.92,0.2194643]
[1727803225941,0.5,143.81,143.78,9.92424242]
[1727803226544,57.4536,143.81,143.78,9.92424242]
[1727803226717,6.9545,143.79,143.78,9.92424242]
[1727803226917,58.9545,143.79,143.78,9.92424242]
[1727803227251,58.9545,143.79,143.78,5.10494242]
[1727803227418,82.731384,143.79,143.78,5.10494242]
[1727803227824,58.9545,143.79,143.78,5.10494242]
[1727803228193,2.0,143.79,143.78,3.86214242]
[1727803228450,17.378,143.86,143.78,3.86214242]
[1727803228451,6.9512,143.86,143.78,57.36151287]
[1727803228752,23.776884,143.93,143.85,53.49937045]
[1727803228922,0.338339,144.26,143.84,53.49937045]
[1727803229122,50.0,143.93,143.92,53.49937045]
[1727803229316,56.98908867,144.01,143.88,8.97519505]
[1727803229529,0.338339,144.26,143.78,3.86214242]
[1727803229530,0.338339,144.26,143.96,6.9462]
[1727803229745,0.338339,144.26,143.88,20.0]
[1727803229932,0.338339,144.26,143.95,17.3662]
[1727803230133,50.0,144.01,144.0,53.49937045]
[1727803230349,50.0,144.01,143.86,34.7542]
[1727803230350,0.338339,144.26,143.94,20.0]
[1727803230532,8.95922824,144.15,143.96,53.49937045]
[1727803230732,1.57422133,144.14,144.02,6.9434]
[1727803231042,50.0,144.08,143.99,24.3062]
[1727803231228,50.0,144.08,143.99,17.3616]
[1727803231650,50.0,144.08,144.04,6.9424]
[1727803231866,50.0,144.08,144.06,6.9414]
[1727803232162,1.57422133,144.07,144.06,6.9414]
[1727803232361,1.57422133,144.07,144.06,32.718284]
[1727803232736,50.0,144.17,144.0,53.49937045]
[1727803232737,50.0,144.17,144.16,6.9367]
[1727803232935,1.14408837,144.22,144.14,17.3435]
[1727803233133,0.338339,144.26,144.16,8.9362]
[1727803233362,50.338339,144.26,144.2,2.0]
[1727803233560,50.338339,144.26,144.14,19.3435]
[1727803233759,50.0,144.23,144.12,2.0]
[1727803233963,50.0,144.19,144.08,17.3514]
[1727803234167,50.0,144.16,144.08,17.3514]
[1727803234464,0.338339,144.26,144.08,17.3514]
[1727803234465,50.0,144.17,144.09,2.0]
[1727803234765,50.0,144.22,144.1,2.0]
[1727803234946,0.338339,144.26,144.04,6.3151]
[1727803234947,50.0,144.15,144.05,8.9415]
[1727803235150,50.0,144.18,144.07,2.0]
[1727803235347,8.65164356,144.18,144.06,2.0]
[1727803235539,8.65164356,144.18,144.01,53.49937045]
[1727803235540,50.0,144.21,144.13,6.9378]
[1727803235744,58.65164356,144.23,144.14,8.9373]
[1727803235942,0.338339,144.26,144.18,6.9353]
[1727803236138,0.338339,144.26,144.17,19.3404]
[1727803236139,0.338339,144.26,144.17,17.3404]
[1727803236558,50.0,144.24,144.13,2.0]
[1727803236882,50.0,144.02,144.01,7.2107]
[1727803237164,50.0,143.98,143.79,6.3505]
[1727803237378,69.3,144.23,143.79,6.3505]
[1727803237379,50.0,144.01,143.83,53.49937045]
[1727803237541,6.89895592,144.02,143.86,53.49937045]
[1727803237741,6.9402,144.09,143.85,47.53888461]
[1727803238046,6.9398,144.1,144.01,17.3596]
[1727803238245,6.9239,144.38,144.05,17.3546]
[1727803238246,50.0,144.14,144.05,17.3546]
[1727803238450,6.91724764,144.14,144.05,17.3546]
[1727803238650,6.91724764,144.14,144.1,6.9393]
[1727803238853,6.91724764,144.14,144.07,6.9408]
[1727803239150,50.0,144.14,143.98,15.6082]
[1727803239469,50.0,144.16,143.98,15.6082]
[1727803239666,0.65269753,144.25,143.98,15.6082]
[1727803239667,50.0,144.17,143.99,23.776884]
[1727803239866,50.0,144.21,144.06,17.3534]
[1727803240167,6.88275914,144.17,144.12,6.9384]
[1727803240346,6.88275914,144.17,144.15,6.9367]
[1727803240547,10.22938397,144.27,144.14,17.3437]
[1727803240548,50.338339,144.26,144.14,17.3437]
[1727803240755,50.338339,144.26,144.18,17.3389]
[1727803240756,6.8790331,144.22,144.18,17.3389]
[1727803240950,50.338339,144.26,144.17,17.3405]
[1727803241249,50.338339,144.26,144.01,34.7174]
[1727803241250,50.0,144.19,144.01,34.7174]
[1727803241554,50.0,144.22,144.11,17.3473]
[1727803242061,6.91198617,144.24,144.11,17.3473]
[1727803242062,50.0,144.23,144.11,17.3473]
[1727803242262,6.91198617,144.24,144.16,6.9366]
[1727803242566,50.0,144.19,144.1,17.3489]
[1727803242748,6.91198617,144.24,144.1,17.3489]
[1727803242749,6.9341,144.22,144.1,17.3489]
[1727803242949,50.0,144.21,144.14,24.2815]
[1727803243263,56.9344,144.21,144.12,6.9384]
[1727803243646,6.9388,144.12,143.97,6.3435]
[1727803243967,50.0,144.15,144.04,17.3551]
[1727803244173,50.0,144.15,143.97,6.3435]
[1727803244350,20.0,144.17,144.07,17.3526]
[1727803244671,50.0,144.22,144.11,17.3476]
[1727803244871,6.91198617,144.24,144.06,34.7076]
[1727803245067,6.91198617,144.24,144.18,6.9355]
[1727803245266,0.338339,144.26,144.19,17.3378]
[1727803245570,0.338339,144.26,144.17,6.9359]
[1727803245773,6.9346,144.21,144.11,6.9389]
[1727803245981,50.0,144.24,144.07,23.776884]
[1727803246146,6.9336,144.23,144.07,23.776884]
[1727803246352,50.0,144.21,144.06,15.6555]
[1727803246569,6.9343,144.21,144.09,17.3501]
[1727803246876,6.9325,144.25,144.16,6.9364]
[1727803247084,50.0,144.25,144.11,6.9388]
[1727803247272,50.338339,144.26,144.06,15.6555]
[1727803247583,50.0,144.23,144.06,15.6555]
[1727803247884,0.338339,144.26,144.13,17.3454]
[1727803248171,0.338339,144.26,144.16,17.3408]
[1727803248380,0.338339,144.26,144.2,17.3368]
[1727803248553,50.338339,144.26,144.06,15.6555]
[1727803248754,0.338339,144.26,144.16,17.3415]
[1727803248957,6.9341,144.22,144.14,6.9376]
[1727803249155,6.9326,144.25,144.1,34.6972]
[1727803249468,0.338339,144.26,144.1,34.6972]
[1727803249773,0.338339,144.26,144.24,6.9325]
[1727803250454,6.9239,144.38,144.2,36.6726]
[1727803250455,1.12400332,144.34,144.3,17.3239]
[1727803250651,6.9268,144.37,144.3,24.2538]
[1727803250861,33.12522792,144.4,144.26,17.3295]
[1727803251077,0.75140567,144.3,144.08,2.0]
[1727803251253,0.75140567,144.3,143.87,34.48038777]
[1727803251254,50.0,144.26,144.0,2.0]
[1727803251579,6.9332,144.24,144.16,6.9366]
[1727803251771,0.75140567,144.3,144.1,34.6978]
[1727803252078,0.75140567,144.3,144.11,2.0]
[1727803252079,6.9314,144.27,144.11,2.0]
[1727803252276,0.75140567,144.3,144.11,2.0]
[1727803252464,0.75140567,144.3,144.1,34.6978]
[1727803252465,0.75140567,144.3,144.24,17.3315]
[1727803253078,0.75140567,144.3,144.28,6.9309]
[1727803253654,0.75140567,144.3,144.23,15.3091]
[1727803254179,0.75140567,144.3,144.2,6.6421]
[1727803254354,0.75140567,144.3,144.14,22.2467]
[1727803254355,6.9347,144.21,144.14,22.2467]
[1727803254568,6.9312,144.28,144.2,6.9346]
[1727803254793,0.75140567,144.3,144.14,49.997]
[1727803255001,0.75140567,144.3,144.19,17.337]
[1727803255172,6.9305,144.29,144.22,6.9337]
[1727803255498,6.9317,144.27,144.2,6.9343]
[1727803255674,0.75140567,144.3,144.14,49.997]
[1727803255675,0.75140567,144.3,144.15,17.3428]
[1727803255873,0.75140567,144.3,144.18,17.3384]
[1727803256078,23.776884,144.29,144.14,15.3091]
[1727803256382,6.9328,144.25,144.17,17.3401]
[1727803256565,0.75140567,144.3,144.19,6.9351]
[1727803256566,6.9319,144.27,144.19,6.9351]
[1727803256774,6.9326,144.25,144.18,6.9353]
[1727803256969,6.9334,144.23,144.16,17.3409]
[1727803257191,20.0,144.28,144.16,17.3409]
[1727803257393,23.776884,144.34,144.14,15.3091]
[1727803257394,20.0,144.33,144.14,15.3091]
[1727803257603,6.9295,144.31,144.14,17.3091]
[1727803257772,34.6448,144.33,144.15,23.776884]
[1727803257970,6.9325,144.25,144.18,24.2738]
[1727803258219,17.324,144.31,144.18,17.3385]
[1727803258220,6.9329,144.24,144.18,17.3385]
[1727803258399,34.6448,144.33,144.18,17.3385]
[1727803258696,6.895,144.36,144.22,6.9337]
[1727803259000,6.895,144.36,144.14,49.9974]
[1727803259001,13.8521,144.4,144.32,6.929]
[1727803259194,6.9265,144.4,144.28,17.3265]
[1727803259698,6.9265,144.4,144.14,62.84798461]
[1727803259699,6.895,144.38,144.14,15.3091]
[1727803259903,23.24213562,144.34,144.2,17.3361]
[1727803260076,23.24213562,144.34,144.14,15.3091]
[1727803260077,18.3253069,144.33,144.14,15.3091]
[1727803260274,38.32535855,144.32,144.15,17.3421]
[1727803260475,38.32535855,144.32,144.14,15.3091]
[1727803260476,6.9325,144.25,144.18,24.2745]
[1727803260698,6.895,144.28,144.17,17.3402]
[1727803260910,6.895,144.28,144.14,15.3091]
[1727803261077,6.9358,144.18,144.14,15.3091]
[1727803261277,6.9353,144.19,144.14,15.3091]
[1727803261505,20.0,144.3,144.14,49.9975]
[1727803261800,6.9309,144.28,144.21,24.2699]
[1727803262002,6.895,144.33,144.21,17.3356]
[1727803262301,6.895,144.33,144.14,104.67016653]
[1727803262302,6.9319,144.26,144.19,6.9352]
[1727803262620,6.93,144.3,144.22,6.9333]
[1727803262780,6.93,144.3,144.2,17.3365]
[1727803263284,6.9306,144.29,144.22,6.9338]
[1727803263483,34.6483,144.31,144.16,17.3411]
[1727803263778,34.6483,144.31,144.14,15.3091]
[1727803263981,6.9324,144.25,144.18,6.9357]
[1727803264185,20.0,144.3,144.14,15.3091]
[1727803264186,6.9313,144.28,144.14,15.3091]
[1727803264389,50.0,144.41,144.16,54.67266653]
[1727803264595,50.0,144.41,144.14,17.3091]
[1727803264596,34.6385,144.35,144.14,15.3091]
[1727803264801,6.932,144.26,144.15,54.67266653]
[1727803265000,17.3243,144.31,144.19,17.338]
[1727803265216,6.9307,144.29,144.19,17.338]
[1727803265512,17.3199,144.35,144.22,17.334]
[1727803265756,34.6381,144.35,144.14,15.3091]
[1727803265883,17.3287,144.27,144.14,15.3091]
[1727803266207,6.9353,144.19,144.14,15.3091]
[1727803266504,18.14101511,144.28,144.14,15.3091]
[1727803266505,6.9372,144.15,144.14,15.3091]
[1727803266679,6.9372,144.15,144.12,6.2009]
[1727803266875,6.9372,144.15,144.08,6.9405]
[1727803266876,6.9383,144.13,144.05,17.354]
[1727803267086,20.0,144.18,144.05,17.354]
[1727803267087,20.0,144.16,144.05,17.354]
[1727803267289,6.9397,144.1,144.04,22.2507]
[1727803267505,20.0,144.14,144.04,22.2507]
[1727803267712,6.9403,144.09,144.04,22.2507]
[1727803267883,23.776884,144.13,144.04,22.2507]
[1727803268396,6.9397,144.1,144.04,22.2507]
[1727803268708,17.3513,144.09,143.97,6.5137]
[1727803268889,23.776884,144.08,143.95,16.564]
[1727803269087,6.9442,144.01,143.95,16.564]
[1727803269382,6.9421,144.05,143.95,33.9309]
[1727803269608,6.9392,144.11,144.02,6.943]
[1727803269824,50.0,144.18,144.0,54.67266653]
[1727803270040,6.9407,144.08,144.0,54.67266653]
[1727803270341,17.3419,144.16,144.0,54.67266653]
[1727803270715,6.9403,144.09,144.0,54.67266653]
[1727803271013,6.9411,144.07,143.99,17.362]
[1727803271213,6.9418,144.06,143.97,6.9456]
[1727803271424,17.3468,144.12,143.98,6.9451]
[1727803271624,6.9409,144.08,143.97,17.3635]
[1727803271808,104.6879,144.15,143.95,16.564]
[1727803272136,6.9435,144.02,143.95,16.564]
[1727803272304,6.9468,143.96,143.9,6.5137]
[1727803272511,6.9469,143.95,143.9,6.5137]
[1727803272719,6.9469,143.95,143.86,15.1759]
[1727803272720,6.948,143.93,143.86,15.1759]
[1727803272935,20.0,143.99,143.82,6.2104]
[1727803272936,17.3658,143.97,143.82,6.2104]
[1727803273139,23.776884,143.95,143.82,6.2104]
[1727803273429,20.0,143.92,143.82,6.2104]
[1727803273635,20.0,143.89,143.7,17.3966]
[1727803273812,20.0,143.79,143.66,6.9606]
[1727803274007,83.01549287,143.88,143.63,0.2194643]
[1727803274008,20.0,143.74,143.63,0.2194643]
[1727803274230,9.23860887,143.78,143.63,0.2194643]
[1727803274431,23.776884,143.78,143.65,6.9612]
[1727803274607,20.0,143.82,143.66,6.9606]
[1727803274808,20.0,143.82,143.64,17.4042]
[1727803274809,20.0,143.8,143.67,30.0]
[1727803275034,6.9597,143.69,143.67,30.0]
[1727803275412,20.0,143.76,143.67,30.0]
[1727803275619,20.0,143.72,143.63,0.2194643]
[1727803275850,20.0,143.72,143.55,494.8642828]
[1727803275851,6.9645,143.59,143.55,494.8642828]
[1727803276006,67.3987,143.69,143.55,494.8642828]
[1727803276007,20.0,143.68,143.55,494.8642828]
[1727803276205,50.0,143.69,143.55,352.37721481]
[1727803276206,6.9653,143.57,143.55,352.37721481]
[1727803276517,6.9644,143.59,143.55,352.37721481]
[1727803276717,6.9626,143.63,143.55,352.37721481]
[1727803276915,17.3969,143.71,143.55,352.37721481]
[1727803276916,50.0,143.68,143.55,352.37721481]
[1727803277119,17.4018,143.67,143.55,352.37721481]
[1727803277421,20.0,143.66,143.55,352.37721481]
[1727803277608,6.9656,143.57,143.55,352.37721481]
[1727803278912,54.8051,143.66,143.55,352.37721481]
[1727803279248,34.7832,143.75,143.6,6.9636]
[1727803279249,6.9596,143.69,143.6,6.9636]
[1727803279540,50.0,143.78,143.6,6.9636]
[1727803279541,6.9577,143.73,143.6,72.08196653]